{"text_format":"1","workbook":"xlsx","n_sheets":1,"sheets":["WksGraphiques"],"not_rendered":{"charts":6,"images":8,"macros":0,"external_links":0,"defined_names":0,"comments":0,"pivot_tables":0},"unopened":[],"bounds":{"document_bytes":16777216,"sheet_cells":100000,"rows_first":2000,"rows_last":500,"rows_between":2000,"halvings":0,"cell_chars":16384,"cell_head_chars":4096},"cells_cut":0,"cells_raw":0,"read":"whole","date_system":"1900"}

{"sheet":"WksGraphiques","index":0,"n_rows":98,"n_cols":5,"rows_kept":98,"cut":false,"hidden":false,"merged":[[25,4,25,8],[26,4,26,8],[27,4,27,8]]}
["Source :"]
["Expert-Excel.com"]
["Préambule"]
["Lors d'une série discontinue d'information il est toujours préférable de mettre  « #NA » en lieu et place d'un « 0 » "]
["Une comparaison dans les exemples ci-dessous"]
[]
["Pour le Gr1",null,"Pour le Gr2"]
[]
["Gr1",null,"Gr2","Formule"]
[79,null,79," 79"]
[11,null,11," 11"]
[0,null,{"$f":"NA()","v":{"$error":"#N/A"}},{"$f":"_xlfn.FORMULATEXT(Tbl1_3[[#This Row],[Gr2]])","v":"=NA()"}]
[0,null,{"$f":"NA()","v":{"$error":"#N/A"}},{"$f":"_xlfn.FORMULATEXT(Tbl1_3[[#This Row],[Gr2]])","v":"=NA()"}]
[0,null,{"$f":"NA()","v":{"$error":"#N/A"}},{"$f":"_xlfn.FORMULATEXT(Tbl1_3[[#This Row],[Gr2]])","v":"=NA()"}]
[15,null,15," 15"]
[4,null,4," 4"]
[0,null,{"$f":"NA()","v":{"$error":"#N/A"}},{"$f":"_xlfn.FORMULATEXT(Tbl1_3[[#This Row],[Gr2]])","v":"=NA()"}]
[39,null,39," 39"]
[27,null,27," 27"]
[]
["But de la démonstration :"]
["Mettre en évidence les valeurs maximales et minimales d'une série de données."]
["Le tableau ci-dessous va servir pour les différents graphiques dans le présent document."]
["Le tableau sera composé de valeurs aléatoires entre 2 et 22.  Une action sur « F9 » recalculera toute la feuille et donc fera « bouger » vos graphiques"]
[]
["Valeurs","Max","Min",null,"Les 2 formules pour les valeurs « Max » et «Min » "]
[{"$f":"RANDBETWEEN(2,22)","v":7},{"$f":"IF(Tbl3_[[#This Row],[Valeurs]]=MAX(Tbl3_[Valeurs]),Tbl3_[[#This Row],[Valeurs]],NA())","v":{"$error":"#N/A"}},{"$f":"IF(Tbl3_[[#This Row],[Valeurs]]=MIN(Tbl3_[Valeurs]),Tbl3_[[#This Row],[Valeurs]],NA())","v":{"$error":"#N/A"}},null," =SI([@Valeurs]=MAX([Valeurs]);[@Valeurs];NA())"]
[17,{"$f":"IF(Tbl3_[[#This Row],[Valeurs]]=MAX(Tbl3_[Valeurs]),Tbl3_[[#This Row],[Valeurs]],NA())","v":{"$error":"#N/A"}},{"$f":"IF(Tbl3_[[#This Row],[Valeurs]]=MIN(Tbl3_[Valeurs]),Tbl3_[[#This Row],[Valeurs]],NA())","v":{"$error":"#N/A"}},null," =SI([@Valeurs]=MIN([Valeurs]);[@Valeurs];NA())"]
[22,{"$f":"IF(Tbl3_[[#This Row],[Valeurs]]=MAX(Tbl3_[Valeurs]),Tbl3_[[#This Row],[Valeurs]],NA())","v":22},{"$f":"IF(Tbl3_[[#This Row],[Valeurs]]=MIN(Tbl3_[Valeurs]),Tbl3_[[#This Row],[Valeurs]],NA())","v":{"$error":"#N/A"}}]
[17,{"$f":"IF(Tbl3_[[#This Row],[Valeurs]]=MAX(Tbl3_[Valeurs]),Tbl3_[[#This Row],[Valeurs]],NA())","v":{"$error":"#N/A"}},{"$f":"IF(Tbl3_[[#This Row],[Valeurs]]=MIN(Tbl3_[Valeurs]),Tbl3_[[#This Row],[Valeurs]],NA())","v":{"$error":"#N/A"}}]
[11,{"$f":"IF(Tbl3_[[#This Row],[Valeurs]]=MAX(Tbl3_[Valeurs]),Tbl3_[[#This Row],[Valeurs]],NA())","v":{"$error":"#N/A"}},{"$f":"IF(Tbl3_[[#This Row],[Valeurs]]=MIN(Tbl3_[Valeurs]),Tbl3_[[#This Row],[Valeurs]],NA())","v":{"$error":"#N/A"}}]
[5,{"$f":"IF(Tbl3_[[#This Row],[Valeurs]]=MAX(Tbl3_[Valeurs]),Tbl3_[[#This Row],[Valeurs]],NA())","v":{"$error":"#N/A"}},{"$f":"IF(Tbl3_[[#This Row],[Valeurs]]=MIN(Tbl3_[Valeurs]),Tbl3_[[#This Row],[Valeurs]],NA())","v":{"$error":"#N/A"}}]
[18,{"$f":"IF(Tbl3_[[#This Row],[Valeurs]]=MAX(Tbl3_[Valeurs]),Tbl3_[[#This Row],[Valeurs]],NA())","v":{"$error":"#N/A"}},{"$f":"IF(Tbl3_[[#This Row],[Valeurs]]=MIN(Tbl3_[Valeurs]),Tbl3_[[#This Row],[Valeurs]],NA())","v":{"$error":"#N/A"}}]
[13,{"$f":"IF(Tbl3_[[#This Row],[Valeurs]]=MAX(Tbl3_[Valeurs]),Tbl3_[[#This Row],[Valeurs]],NA())","v":{"$error":"#N/A"}},{"$f":"IF(Tbl3_[[#This Row],[Valeurs]]=MIN(Tbl3_[Valeurs]),Tbl3_[[#This Row],[Valeurs]],NA())","v":{"$error":"#N/A"}}]
[21,{"$f":"IF(Tbl3_[[#This Row],[Valeurs]]=MAX(Tbl3_[Valeurs]),Tbl3_[[#This Row],[Valeurs]],NA())","v":{"$error":"#N/A"}},{"$f":"IF(Tbl3_[[#This Row],[Valeurs]]=MIN(Tbl3_[Valeurs]),Tbl3_[[#This Row],[Valeurs]],NA())","v":{"$error":"#N/A"}}]
[12,{"$f":"IF(Tbl3_[[#This Row],[Valeurs]]=MAX(Tbl3_[Valeurs]),Tbl3_[[#This Row],[Valeurs]],NA())","v":{"$error":"#N/A"}},{"$f":"IF(Tbl3_[[#This Row],[Valeurs]]=MIN(Tbl3_[Valeurs]),Tbl3_[[#This Row],[Valeurs]],NA())","v":{"$error":"#N/A"}}]
[7,{"$f":"IF(Tbl3_[[#This Row],[Valeurs]]=MAX(Tbl3_[Valeurs]),Tbl3_[[#This Row],[Valeurs]],NA())","v":{"$error":"#N/A"}},{"$f":"IF(Tbl3_[[#This Row],[Valeurs]]=MIN(Tbl3_[Valeurs]),Tbl3_[[#This Row],[Valeurs]],NA())","v":{"$error":"#N/A"}}]
[12,{"$f":"IF(Tbl3_[[#This Row],[Valeurs]]=MAX(Tbl3_[Valeurs]),Tbl3_[[#This Row],[Valeurs]],NA())","v":{"$error":"#N/A"}},{"$f":"IF(Tbl3_[[#This Row],[Valeurs]]=MIN(Tbl3_[Valeurs]),Tbl3_[[#This Row],[Valeurs]],NA())","v":{"$error":"#N/A"}}]
[14,{"$f":"IF(Tbl3_[[#This Row],[Valeurs]]=MAX(Tbl3_[Valeurs]),Tbl3_[[#This Row],[Valeurs]],NA())","v":{"$error":"#N/A"}},{"$f":"IF(Tbl3_[[#This Row],[Valeurs]]=MIN(Tbl3_[Valeurs]),Tbl3_[[#This Row],[Valeurs]],NA())","v":{"$error":"#N/A"}}]
[12,{"$f":"IF(Tbl3_[[#This Row],[Valeurs]]=MAX(Tbl3_[Valeurs]),Tbl3_[[#This Row],[Valeurs]],NA())","v":{"$error":"#N/A"}},{"$f":"IF(Tbl3_[[#This Row],[Valeurs]]=MIN(Tbl3_[Valeurs]),Tbl3_[[#This Row],[Valeurs]],NA())","v":{"$error":"#N/A"}}]
[10,{"$f":"IF(Tbl3_[[#This Row],[Valeurs]]=MAX(Tbl3_[Valeurs]),Tbl3_[[#This Row],[Valeurs]],NA())","v":{"$error":"#N/A"}},{"$f":"IF(Tbl3_[[#This Row],[Valeurs]]=MIN(Tbl3_[Valeurs]),Tbl3_[[#This Row],[Valeurs]],NA())","v":{"$error":"#N/A"}}]
[21,{"$f":"IF(Tbl3_[[#This Row],[Valeurs]]=MAX(Tbl3_[Valeurs]),Tbl3_[[#This Row],[Valeurs]],NA())","v":{"$error":"#N/A"}},{"$f":"IF(Tbl3_[[#This Row],[Valeurs]]=MIN(Tbl3_[Valeurs]),Tbl3_[[#This Row],[Valeurs]],NA())","v":{"$error":"#N/A"}}]
[14,{"$f":"IF(Tbl3_[[#This Row],[Valeurs]]=MAX(Tbl3_[Valeurs]),Tbl3_[[#This Row],[Valeurs]],NA())","v":{"$error":"#N/A"}},{"$f":"IF(Tbl3_[[#This Row],[Valeurs]]=MIN(Tbl3_[Valeurs]),Tbl3_[[#This Row],[Valeurs]],NA())","v":{"$error":"#N/A"}}]
[17,{"$f":"IF(Tbl3_[[#This Row],[Valeurs]]=MAX(Tbl3_[Valeurs]),Tbl3_[[#This Row],[Valeurs]],NA())","v":{"$error":"#N/A"}},{"$f":"IF(Tbl3_[[#This Row],[Valeurs]]=MIN(Tbl3_[Valeurs]),Tbl3_[[#This Row],[Valeurs]],NA())","v":{"$error":"#N/A"}}]
[3,{"$f":"IF(Tbl3_[[#This Row],[Valeurs]]=MAX(Tbl3_[Valeurs]),Tbl3_[[#This Row],[Valeurs]],NA())","v":{"$error":"#N/A"}},{"$f":"IF(Tbl3_[[#This Row],[Valeurs]]=MIN(Tbl3_[Valeurs]),Tbl3_[[#This Row],[Valeurs]],NA())","v":3}]
[5,{"$f":"IF(Tbl3_[[#This Row],[Valeurs]]=MAX(Tbl3_[Valeurs]),Tbl3_[[#This Row],[Valeurs]],NA())","v":{"$error":"#N/A"}},{"$f":"IF(Tbl3_[[#This Row],[Valeurs]]=MIN(Tbl3_[Valeurs]),Tbl3_[[#This Row],[Valeurs]],NA())","v":{"$error":"#N/A"}}]
[]
["Graphique en courbes"]
[]
[]
[]
[]
[]
[]
[]
[]
[]
[]
[]
[]
[]
["Les 3 courbes sont superposées"]
["Les valeurs « Max » et « Min » sont indiquées respectivement par les points « 4 » et « 5 » "]
["Dans l'étape suivante, on va les mettre plus en évidence"]
[]
[]
[]
[]
[]
[]
[]
[]
[]
[]
[]
[]
["Pour cette action j'ai choisi via l'onglet « Création de graphique », le groupe « Styles du graphique » le style illustré par ma capture d'écran : "]
["Le résultat est instantanné et est très simple de mise en exécution"]
[]
["Plus sophistiqué, ci-dessous"]
[]
[]
[]
[]
[]
[]
[]
[]
[]
[]
[]
[]
["1. Via le bouton droit de la souris sur la zone de graphique accéder au volet format de la forme"]
["2. Pour les séries « Max » et « Min » rendre le trait invisible"]
["3. Pour les séries « Max » et « Min », changer les propiétés des marques"]
["4. Ajouter les étiquettes de données"]
["   (en choisissant au-dessus/en-dessous)"]
["        pour les minima et maxima et de les mettre en couleur"]